Workbook

Sheet Tabelle1
A2: Name | B2: WKN | C2: ISIN | D2: 1M | E2: 3M | F2: 6M | G2: 1J | H2: 3J
A3: iShares Core MSCI World UCITS ETF USD (Acc) | B3: A0RPWH | C3: IE00B4L5Y983 | D3: =IFERROR(MID(VLOOKUP($C3,Tabelle2!$C:$D,2,FALSE),FIND("#",SUBSTITUTE(VLOOKUP($C3,Tabelle2!$C:$D,2,FALSE),""">","#",1))+2,FIND("%",MID(VLOOKUP($C3,Tabelle2!$C:$D,2,FALSE),FIND("#",SUBSTITUTE(VLOOKUP($C3,Tabelle2!$C:$D,2,FALSE),""">","#",1))+2,10))-1)/100,"") -> 0.0688 | E3: =IFERROR(MID(VLOOKUP($C3,Tabelle2!$C:$D,2,FALSE),FIND("#",SUBSTITUTE(VLOOKUP($C3,Tabelle2!$C:$D,2,FALSE),""">","#",2))+2,FIND("%",MID(VLOOKUP($C3,Tabelle2!$C:$D,2,FALSE),FIND("#",SUBSTITUTE(VLOOKUP($C3,Tabelle2!$C:$D,2,FALSE),""">","#",2))+2,10))-1)/100,"") -> 0.0205 | F3: =IFERROR(MID(VLOOKUP($C3,Tabelle2!$C:$D,2,FALSE),FIND("#",SUBSTITUTE(VLOOKUP($C3,Tabelle2!$C:$D,2,FALSE),""">","#",3))+2,FIND("%",MID(VLOOKUP($C3,Tabelle2!$C:$D,2,FALSE),FIND("#",SUBSTITUTE(VLOOKUP($C3,Tabelle2!$C:$D,2,FALSE),""">","#",3))+2,10))-1)/100,"") -> -0.0239 | G3: =IFERROR(MID(VLOOKUP($C3,Tabelle2!$C:$D,2,FALSE),FIND("#",SUBSTITUTE(VLOOKUP($C3,Tabelle2!$C:$D,2,FALSE),""">","#",4))+2,FIND("%",MID(VLOOKUP($C3,Tabelle2!$C:$D,2,FALSE),FIND("#",SUBSTITUTE(VLOOKUP($C3,Tabelle2!$C:$D,2,FALSE),""">","#",4))+2,10))-1)/100,"") -> 0.0851 | H3: =IFERROR(MID(VLOOKUP($C3,Tabelle2!$C:$D,2,FALSE),FIND("#",SUBSTITUTE(VLOOKUP($C3,Tabelle2!$C:$D,2,FALSE),""">","#",5))+2,FIND("%",MID(VLOOKUP($C3,Tabelle2!$C:$D,2,FALSE),FIND("#",SUBSTITUTE(VLOOKUP($C3,Tabelle2!$C:$D,2,FALSE),""">","#",5))+2,10))-1)/100,"") -> 0.462
A4: ComStage MSCI World TRN UCITS ETF | B4: ETF110 | C4: LU0392494562 | D4: =IFERROR(MID(VLOOKUP($C4,Tabelle2!$C:$D,2,FALSE),FIND("#",SUBSTITUTE(VLOOKUP($C4,Tabelle2!$C:$D,2,FALSE),""">","#",1))+2,FIND("%",MID(VLOOKUP($C4,Tabelle2!$C:$D,2,FALSE),FIND("#",SUBSTITUTE(VLOOKUP($C4,Tabelle2!$C:$D,2,FALSE),""">","#",1))+2,10))-1)/100,"") -> 0.0712 | E4: =IFERROR(MID(VLOOKUP($C4,Tabelle2!$C:$D,2,FALSE),FIND("#",SUBSTITUTE(VLOOKUP($C4,Tabelle2!$C:$D,2,FALSE),""">","#",2))+2,FIND("%",MID(VLOOKUP($C4,Tabelle2!$C:$D,2,FALSE),FIND("#",SUBSTITUTE(VLOOKUP($C4,Tabelle2!$C:$D,2,FALSE),""">","#",2))+2,10))-1)/100,"") -> 0.0209 | F4: =IFERROR(MID(VLOOKUP($C4,Tabelle2!$C:$D,2,FALSE),FIND("#",SUBSTITUTE(VLOOKUP($C4,Tabelle2!$C:$D,2,FALSE),""">","#",3))+2,FIND("%",MID(VLOOKUP($C4,Tabelle2!$C:$D,2,FALSE),FIND("#",SUBSTITUTE(VLOOKUP($C4,Tabelle2!$C:$D,2,FALSE),""">","#",3))+2,10))-1)/100,"") -> -0.0236 | G4: =IFERROR(MID(VLOOKUP($C4,Tabelle2!$C:$D,2,FALSE),FIND("#",SUBSTITUTE(VLOOKUP($C4,Tabelle2!$C:$D,2,FALSE),""">","#",4))+2,FIND("%",MID(VLOOKUP($C4,Tabelle2!$C:$D,2,FALSE),FIND("#",SUBSTITUTE(VLOOKUP($C4,Tabelle2!$C:$D,2,FALSE),""">","#",4))+2,10))-1)/100,"") -> 0.0862 | H4: =IFERROR(MID(VLOOKUP($C4,Tabelle2!$C:$D,2,FALSE),FIND("#",SUBSTITUTE(VLOOKUP($C4,Tabelle2!$C:$D,2,FALSE),""">","#",5))+2,FIND("%",MID(VLOOKUP($C4,Tabelle2!$C:$D,2,FALSE),FIND("#",SUBSTITUTE(VLOOKUP($C4,Tabelle2!$C:$D,2,FALSE),""">","#",5))+2,10))-1)/100,"") -> 0.4608
A5: Lyxor MSCI World UCITS ETF D-EUR | B5: LYX0AG | C5: FR0010315770 | D5: =IFERROR(MID(VLOOKUP($C5,Tabelle2!$C:$D,2,FALSE),FIND("#",SUBSTITUTE(VLOOKUP($C5,Tabelle2!$C:$D,2,FALSE),""">","#",1))+2,FIND("%",MID(VLOOKUP($C5,Tabelle2!$C:$D,2,FALSE),FIND("#",SUBSTITUTE(VLOOKUP($C5,Tabelle2!$C:$D,2,FALSE),""">","#",1))+2,10))-1)/100,"") -> 0.0687 | E5: =IFERROR(MID(VLOOKUP($C5,Tabelle2!$C:$D,2,FALSE),FIND("#",SUBSTITUTE(VLOOKUP($C5,Tabelle2!$C:$D,2,FALSE),""">","#",2))+2,FIND("%",MID(VLOOKUP($C5,Tabelle2!$C:$D,2,FALSE),FIND("#",SUBSTITUTE(VLOOKUP($C5,Tabelle2!$C:$D,2,FALSE),""">","#",2))+2,10))-1)/100,"") -> 0.0213 | F5: =IFERROR(MID(VLOOKUP($C5,Tabelle2!$C:$D,2,FALSE),FIND("#",SUBSTITUTE(VLOOKUP($C5,Tabelle2!$C:$D,2,FALSE),""">","#",3))+2,FIND("%",MID(VLOOKUP($C5,Tabelle2!$C:$D,2,FALSE),FIND("#",SUBSTITUTE(VLOOKUP($C5,Tabelle2!$C:$D,2,FALSE),""">","#",3))+2,10))-1)/100,"") -> -0.0273 | G5: =IFERROR(MID(VLOOKUP($C5,Tabelle2!$C:$D,2,FALSE),FIND("#",SUBSTITUTE(VLOOKUP($C5,Tabelle2!$C:$D,2,FALSE),""">","#",4))+2,FIND("%",MID(VLOOKUP($C5,Tabelle2!$C:$D,2,FALSE),FIND("#",SUBSTITUTE(VLOOKUP($C5,Tabelle2!$C:$D,2,FALSE),""">","#",4))+2,10))-1)/100,"") -> 0.0894 | H5: =IFERROR(MID(VLOOKUP($C5,Tabelle2!$C:$D,2,FALSE),FIND("#",SUBSTITUTE(VLOOKUP($C5,Tabelle2!$C:$D,2,FALSE),""">","#",5))+2,FIND("%",MID(VLOOKUP($C5,Tabelle2!$C:$D,2,FALSE),FIND("#",SUBSTITUTE(VLOOKUP($C5,Tabelle2!$C:$D,2,FALSE),""">","#",5))+2,10))-1)/100,"") -> 0.4553
A6: HSBC MSCI WORLD UCITS ETF | B6: A1C9KL | C6: DE000A1C9KL8 | D6: =IFERROR(MID(VLOOKUP($C6,Tabelle2!$C:$D,2,FALSE),FIND("#",SUBSTITUTE(VLOOKUP($C6,Tabelle2!$C:$D,2,FALSE),""">","#",1))+2,FIND("%",MID(VLOOKUP($C6,Tabelle2!$C:$D,2,FALSE),FIND("#",SUBSTITUTE(VLOOKUP($C6,Tabelle2!$C:$D,2,FALSE),""">","#",1))+2,10))-1)/100,"") -> 0.0692 | E6: =IFERROR(MID(VLOOKUP($C6,Tabelle2!$C:$D,2,FALSE),FIND("#",SUBSTITUTE(VLOOKUP($C6,Tabelle2!$C:$D,2,FALSE),""">","#",2))+2,FIND("%",MID(VLOOKUP($C6,Tabelle2!$C:$D,2,FALSE),FIND("#",SUBSTITUTE(VLOOKUP($C6,Tabelle2!$C:$D,2,FALSE),""">","#",2))+2,10))-1)/100,"") -> 0.0216 | F6: =IFERROR(MID(VLOOKUP($C6,Tabelle2!$C:$D,2,FALSE),FIND("#",SUBSTITUTE(VLOOKUP($C6,Tabelle2!$C:$D,2,FALSE),""">","#",3))+2,FIND("%",MID(VLOOKUP($C6,Tabelle2!$C:$D,2,FALSE),FIND("#",SUBSTITUTE(VLOOKUP($C6,Tabelle2!$C:$D,2,FALSE),""">","#",3))+2,10))-1)/100,"") -> -0.0221 | G6: =IFERROR(MID(VLOOKUP($C6,Tabelle2!$C:$D,2,FALSE),FIND("#",SUBSTITUTE(VLOOKUP($C6,Tabelle2!$C:$D,2,FALSE),""">","#",4))+2,FIND("%",MID(VLOOKUP($C6,Tabelle2!$C:$D,2,FALSE),FIND("#",SUBSTITUTE(VLOOKUP($C6,Tabelle2!$C:$D,2,FALSE),""">","#",4))+2,10))-1)/100,"") -> 0.0894 | H6: =IFERROR(MID(VLOOKUP($C6,Tabelle2!$C:$D,2,FALSE),FIND("#",SUBSTITUTE(VLOOKUP($C6,Tabelle2!$C:$D,2,FALSE),""">","#",5))+2,FIND("%",MID(VLOOKUP($C6,Tabelle2!$C:$D,2,FALSE),FIND("#",SUBSTITUTE(VLOOKUP($C6,Tabelle2!$C:$D,2,FALSE),""">","#",5))+2,10))-1)/100,"") -> 0.4709
A7: Amundi MSCI World UCITS ETF - EUR (C) | B7: A2H59Q | C7: LU1681043599 | D7: =IFERROR(MID(VLOOKUP($C7,Tabelle2!$C:$D,2,FALSE),FIND("#",SUBSTITUTE(VLOOKUP($C7,Tabelle2!$C:$D,2,FALSE),""">","#",1))+2,FIND("%",MID(VLOOKUP($C7,Tabelle2!$C:$D,2,FALSE),FIND("#",SUBSTITUTE(VLOOKUP($C7,Tabelle2!$C:$D,2,FALSE),""">","#",1))+2,10))-1)/100,"") -> 0.0685 | E7: =IFERROR(MID(VLOOKUP($C7,Tabelle2!$C:$D,2,FALSE),FIND("#",SUBSTITUTE(VLOOKUP($C7,Tabelle2!$C:$D,2,FALSE),""">","#",2))+2,FIND("%",MID(VLOOKUP($C7,Tabelle2!$C:$D,2,FALSE),FIND("#",SUBSTITUTE(VLOOKUP($C7,Tabelle2!$C:$D,2,FALSE),""">","#",2))+2,10))-1)/100,"") -> 0.0211 | F7: =IFERROR(MID(VLOOKUP($C7,Tabelle2!$C:$D,2,FALSE),FIND("#",SUBSTITUTE(VLOOKUP($C7,Tabelle2!$C:$D,2,FALSE),""">","#",3))+2,FIND("%",MID(VLOOKUP($C7,Tabelle2!$C:$D,2,FALSE),FIND("#",SUBSTITUTE(VLOOKUP($C7,Tabelle2!$C:$D,2,FALSE),""">","#",3))+2,10))-1)/100,"") -> -0.0278 | G7: =IFERROR(MID(VLOOKUP($C7,Tabelle2!$C:$D,2,FALSE),FIND("#",SUBSTITUTE(VLOOKUP($C7,Tabelle2!$C:$D,2,FALSE),""">","#",4))+2,FIND("%",MID(VLOOKUP($C7,Tabelle2!$C:$D,2,FALSE),FIND("#",SUBSTITUTE(VLOOKUP($C7,Tabelle2!$C:$D,2,FALSE),""">","#",4))+2,10))-1)/100,"") -> 0.0884 | H7: =IFERROR(MID(VLOOKUP($C7,Tabelle2!$C:$D,2,FALSE),FIND("#",SUBSTITUTE(VLOOKUP($C7,Tabelle2!$C:$D,2,FALSE),""">","#",5))+2,FIND("%",MID(VLOOKUP($C7,Tabelle2!$C:$D,2,FALSE),FIND("#",SUBSTITUTE(VLOOKUP($C7,Tabelle2!$C:$D,2,FALSE),""">","#",5))+2,10))-1)/100,"") -> 0.4507
A8: Xtrackers MSCI World Index UCITS ETF 1D | B8: A1XEY2 | C8: IE00BK1PV551 | D8: =IFERROR(MID(VLOOKUP($C8,Tabelle2!$C:$D,2,FALSE),FIND("#",SUBSTITUTE(VLOOKUP($C8,Tabelle2!$C:$D,2,FALSE),""">","#",1))+2,FIND("%",MID(VLOOKUP($C8,Tabelle2!$C:$D,2,FALSE),FIND("#",SUBSTITUTE(VLOOKUP($C8,Tabelle2!$C:$D,2,FALSE),""">","#",1))+2,10))-1)/100,"") -> 0.0686 | E8: =IFERROR(MID(VLOOKUP($C8,Tabelle2!$C:$D,2,FALSE),FIND("#",SUBSTITUTE(VLOOKUP($C8,Tabelle2!$C:$D,2,FALSE),""">","#",2))+2,FIND("%",MID(VLOOKUP($C8,Tabelle2!$C:$D,2,FALSE),FIND("#",SUBSTITUTE(VLOOKUP($C8,Tabelle2!$C:$D,2,FALSE),""">","#",2))+2,10))-1)/100,"") -> 0.0204 | F8: =IFERROR(MID(VLOOKUP($C8,Tabelle2!$C:$D,2,FALSE),FIND("#",SUBSTITUTE(VLOOKUP($C8,Tabelle2!$C:$D,2,FALSE),""">","#",3))+2,FIND("%",MID(VLOOKUP($C8,Tabelle2!$C:$D,2,FALSE),FIND("#",SUBSTITUTE(VLOOKUP($C8,Tabelle2!$C:$D,2,FALSE),""">","#",3))+2,10))-1)/100,"") -> -0.0242 | G8: =IFERROR(MID(VLOOKUP($C8,Tabelle2!$C:$D,2,FALSE),FIND("#",SUBSTITUTE(VLOOKUP($C8,Tabelle2!$C:$D,2,FALSE),""">","#",4))+2,FIND("%",MID(VLOOKUP($C8,Tabelle2!$C:$D,2,FALSE),FIND("#",SUBSTITUTE(VLOOKUP($C8,Tabelle2!$C:$D,2,FALSE),""">","#",4))+2,10))-1)/100,"") -> 0.0849 | H8: =IFERROR(MID(VLOOKUP($C8,Tabelle2!$C:$D,2,FALSE),FIND("#",SUBSTITUTE(VLOOKUP($C8,Tabelle2!$C:$D,2,FALSE),""">","#",5))+2,FIND("%",MID(VLOOKUP($C8,Tabelle2!$C:$D,2,FALSE),FIND("#",SUBSTITUTE(VLOOKUP($C8,Tabelle2!$C:$D,2,FALSE),""">","#",5))+2,10))-1)/100,"") -> 0.4614
A9: Xtrackers MSCI World Index UCITS ETF 1C | B9: A1XB5U | C9: IE00BJ0KDQ92 | D9: =IFERROR(MID(VLOOKUP($C9,Tabelle2!$C:$D,2,FALSE),FIND("#",SUBSTITUTE(VLOOKUP($C9,Tabelle2!$C:$D,2,FALSE),""">","#",1))+2,FIND("%",MID(VLOOKUP($C9,Tabelle2!$C:$D,2,FALSE),FIND("#",SUBSTITUTE(VLOOKUP($C9,Tabelle2!$C:$D,2,FALSE),""">","#",1))+2,10))-1)/100,"") -> 0.0686 | E9: =IFERROR(MID(VLOOKUP($C9,Tabelle2!$C:$D,2,FALSE),FIND("#",SUBSTITUTE(VLOOKUP($C9,Tabelle2!$C:$D,2,FALSE),""">","#",2))+2,FIND("%",MID(VLOOKUP($C9,Tabelle2!$C:$D,2,FALSE),FIND("#",SUBSTITUTE(VLOOKUP($C9,Tabelle2!$C:$D,2,FALSE),""">","#",2))+2,10))-1)/100,"") -> 0.0203 | F9: =IFERROR(MID(VLOOKUP($C9,Tabelle2!$C:$D,2,FALSE),FIND("#",SUBSTITUTE(VLOOKUP($C9,Tabelle2!$C:$D,2,FALSE),""">","#",3))+2,FIND("%",MID(VLOOKUP($C9,Tabelle2!$C:$D,2,FALSE),FIND("#",SUBSTITUTE(VLOOKUP($C9,Tabelle2!$C:$D,2,FALSE),""">","#",3))+2,10))-1)/100,"") -> -0.0243 | G9: =IFERROR(MID(VLOOKUP($C9,Tabelle2!$C:$D,2,FALSE),FIND("#",SUBSTITUTE(VLOOKUP($C9,Tabelle2!$C:$D,2,FALSE),""">","#",4))+2,FIND("%",MID(VLOOKUP($C9,Tabelle2!$C:$D,2,FALSE),FIND("#",SUBSTITUTE(VLOOKUP($C9,Tabelle2!$C:$D,2,FALSE),""">","#",4))+2,10))-1)/100,"") -> 0.0851 | H9: =IFERROR(MID(VLOOKUP($C9,Tabelle2!$C:$D,2,FALSE),FIND("#",SUBSTITUTE(VLOOKUP($C9,Tabelle2!$C:$D,2,FALSE),""">","#",5))+2,FIND("%",MID(VLOOKUP($C9,Tabelle2!$C:$D,2,FALSE),FIND("#",SUBSTITUTE(VLOOKUP($C9,Tabelle2!$C:$D,2,FALSE),""">","#",5))+2,10))-1)/100,"") -> 0.4618
A10: Invesco MSCI World UCITS ETF | B10: A0RGCS | C10: IE00B60SX394 | D10: =IFERROR(MID(VLOOKUP($C10,Tabelle2!$C:$D,2,FALSE),FIND("#",SUBSTITUTE(VLOOKUP($C10,Tabelle2!$C:$D,2,FALSE),""">","#",1))+2,FIND("%",MID(VLOOKUP($C10,Tabelle2!$C:$D,2,FALSE),FIND("#",SUBSTITUTE(VLOOKUP($C10,Tabelle2!$C:$D,2,FALSE),""">","#",1))+2,10))-1)/100,"") -> 0.0682 | E10: =IFERROR(MID(VLOOKUP($C10,Tabelle2!$C:$D,2,FALSE),FIND("#",SUBSTITUTE(VLOOKUP($C10,Tabelle2!$C:$D,2,FALSE),""">","#",2))+2,FIND("%",MID(VLOOKUP($C10,Tabelle2!$C:$D,2,FALSE),FIND("#",SUBSTITUTE(VLOOKUP($C10,Tabelle2!$C:$D,2,FALSE),""">","#",2))+2,10))-1)/100,"") -> 0.02 | F10: =IFERROR(MID(VLOOKUP($C10,Tabelle2!$C:$D,2,FALSE),FIND("#",SUBSTITUTE(VLOOKUP($C10,Tabelle2!$C:$D,2,FALSE),""">","#",3))+2,FIND("%",MID(VLOOKUP($C10,Tabelle2!$C:$D,2,FALSE),FIND("#",SUBSTITUTE(VLOOKUP($C10,Tabelle2!$C:$D,2,FALSE),""">","#",3))+2,10))-1)/100,"") -> -0.0243 | G10: =IFERROR(MID(VLOOKUP($C10,Tabelle2!$C:$D,2,FALSE),FIND("#",SUBSTITUTE(VLOOKUP($C10,Tabelle2!$C:$D,2,FALSE),""">","#",4))+2,FIND("%",MID(VLOOKUP($C10,Tabelle2!$C:$D,2,FALSE),FIND("#",SUBSTITUTE(VLOOKUP($C10,Tabelle2!$C:$D,2,FALSE),""">","#",4))+2,10))-1)/100,"") -> 0.0848 | H10: =IFERROR(MID(VLOOKUP($C10,Tabelle2!$C:$D,2,FALSE),FIND("#",SUBSTITUTE(VLOOKUP($C10,Tabelle2!$C:$D,2,FALSE),""">","#",5))+2,FIND("%",MID(VLOOKUP($C10,Tabelle2!$C:$D,2,FALSE),FIND("#",SUBSTITUTE(VLOOKUP($C10,Tabelle2!$C:$D,2,FALSE),""">","#",5))+2,10))-1)/100,"") -> 0.4597
A11: UBS ETF (IE) MSCI World UCITS ETF (USD) A-dis | B11: A1JVCA | C11: IE00B7KQ7B66 | D11: =IFERROR(MID(VLOOKUP($C11,Tabelle2!$C:$D,2,FALSE),FIND("#",SUBSTITUTE(VLOOKUP($C11,Tabelle2!$C:$D,2,FALSE),""">","#",1))+2,FIND("%",MID(VLOOKUP($C11,Tabelle2!$C:$D,2,FALSE),FIND("#",SUBSTITUTE(VLOOKUP($C11,Tabelle2!$C:$D,2,FALSE),""">","#",1))+2,10))-1)/100,"") -> 0.0682 | E11: =IFERROR(MID(VLOOKUP($C11,Tabelle2!$C:$D,2,FALSE),FIND("#",SUBSTITUTE(VLOOKUP($C11,Tabelle2!$C:$D,2,FALSE),""">","#",2))+2,FIND("%",MID(VLOOKUP($C11,Tabelle2!$C:$D,2,FALSE),FIND("#",SUBSTITUTE(VLOOKUP($C11,Tabelle2!$C:$D,2,FALSE),""">","#",2))+2,10))-1)/100,"") -> 0.0198 | F11: =IFERROR(MID(VLOOKUP($C11,Tabelle2!$C:$D,2,FALSE),FIND("#",SUBSTITUTE(VLOOKUP($C11,Tabelle2!$C:$D,2,FALSE),""">","#",3))+2,FIND("%",MID(VLOOKUP($C11,Tabelle2!$C:$D,2,FALSE),FIND("#",SUBSTITUTE(VLOOKUP($C11,Tabelle2!$C:$D,2,FALSE),""">","#",3))+2,10))-1)/100,"") -> -0.0253 | G11: =IFERROR(MID(VLOOKUP($C11,Tabelle2!$C:$D,2,FALSE),FIND("#",SUBSTITUTE(VLOOKUP($C11,Tabelle2!$C:$D,2,FALSE),""">","#",4))+2,FIND("%",MID(VLOOKUP($C11,Tabelle2!$C:$D,2,FALSE),FIND("#",SUBSTITUTE(VLOOKUP($C11,Tabelle2!$C:$D,2,FALSE),""">","#",4))+2,10))-1)/100,"") -> 0.0835 | H11: =IFERROR(MID(VLOOKUP($C11,Tabelle2!$C:$D,2,FALSE),FIND("#",SUBSTITUTE(VLOOKUP($C11,Tabelle2!$C:$D,2,FALSE),""">","#",5))+2,FIND("%",MID(VLOOKUP($C11,Tabelle2!$C:$D,2,FALSE),FIND("#",SUBSTITUTE(VLOOKUP($C11,Tabelle2!$C:$D,2,FALSE),""">","#",5))+2,10))-1)/100,"") -> 0.457
A12: iShares MSCI World UCITS ETF (Dist) | B12: A0HGV0 | C12: IE00B0M62Q58 | D12: =IFERROR(MID(VLOOKUP($C12,Tabelle2!$C:$D,2,FALSE),FIND("#",SUBSTITUTE(VLOOKUP($C12,Tabelle2!$C:$D,2,FALSE),""">","#",1))+2,FIND("%",MID(VLOOKUP($C12,Tabelle2!$C:$D,2,FALSE),FIND("#",SUBSTITUTE(VLOOKUP($C12,Tabelle2!$C:$D,2,FALSE),""">","#",1))+2,10))-1)/100,"") -> 0.0683 | E12: =IFERROR(MID(VLOOKUP($C12,Tabelle2!$C:$D,2,FALSE),FIND("#",SUBSTITUTE(VLOOKUP($C12,Tabelle2!$C:$D,2,FALSE),""">","#",2))+2,FIND("%",MID(VLOOKUP($C12,Tabelle2!$C:$D,2,FALSE),FIND("#",SUBSTITUTE(VLOOKUP($C12,Tabelle2!$C:$D,2,FALSE),""">","#",2))+2,10))-1)/100,"") -> 0.0199 | F12: =IFERROR(MID(VLOOKUP($C12,Tabelle2!$C:$D,2,FALSE),FIND("#",SUBSTITUTE(VLOOKUP($C12,Tabelle2!$C:$D,2,FALSE),""">","#",3))+2,FIND("%",MID(VLOOKUP($C12,Tabelle2!$C:$D,2,FALSE),FIND("#",SUBSTITUTE(VLOOKUP($C12,Tabelle2!$C:$D,2,FALSE),""">","#",3))+2,10))-1)/100,"") -> -0.0251 | G12: =IFERROR(MID(VLOOKUP($C12,Tabelle2!$C:$D,2,FALSE),FIND("#",SUBSTITUTE(VLOOKUP($C12,Tabelle2!$C:$D,2,FALSE),""">","#",4))+2,FIND("%",MID(VLOOKUP($C12,Tabelle2!$C:$D,2,FALSE),FIND("#",SUBSTITUTE(VLOOKUP($C12,Tabelle2!$C:$D,2,FALSE),""">","#",4))+2,10))-1)/100,"") -> 0.0822 | H12: =IFERROR(MID(VLOOKUP($C12,Tabelle2!$C:$D,2,FALSE),FIND("#",SUBSTITUTE(VLOOKUP($C12,Tabelle2!$C:$D,2,FALSE),""">","#",5))+2,FIND("%",MID(VLOOKUP($C12,Tabelle2!$C:$D,2,FALSE),FIND("#",SUBSTITUTE(VLOOKUP($C12,Tabelle2!$C:$D,2,FALSE),""">","#",5))+2,10))-1)/100,"") -> 0.4526

Sheet Tabelle2
A2: Name | B2: WKN | C2: ISIN | D2: jETFTurboString
A3: iShares Core MSCI World UCITS ETF USD (Acc) | B3: A0RPWH | C3: IE00B4L5Y983 | D3: =jETFPerfString($C3) -> <tr> <td class="val green" id="id26">6,88%</td> <td class="val column-priority-2 green" id="id27">2,05%</td> <td class="val red" id="id28">-2,39%</td> <td class="val green" id="id29">8,51%</td> <td class="val green" id="id2a">46,20%</td> </tr> </tbod
A4: ComStage MSCI World TRN UCITS ETF | B4: ETF110 | C4: LU0392494562 | D4: <tr> <td class="val green" id="id26">7,12%</td> <td class="val column-priority-2 green" id="id27">2,09%</td> <td class="val red" id="id28">-2,36%</td> <td class="val green" id="id29">8,62%</td> <td class="val green" id="id2a">46,08%</td> </tr> </tbod
A5: Lyxor MSCI World UCITS ETF D-EUR | B5: LYX0AG | C5: FR0010315770 | D5: <tr> <td class="val green" id="id26">6,87%</td> <td class="val column-priority-2 green" id="id27">2,13%</td> <td class="val red" id="id28">-2,73%</td> <td class="val green" id="id29">8,94%</td> <td class="val green" id="id2a">45,53%</td> </tr> </tbod
A6: HSBC MSCI WORLD UCITS ETF | B6: A1C9KL | C6: DE000A1C9KL8 | D6: <tr> <td class="val green" id="id25">6,92%</td> <td class="val column-priority-2 green" id="id26">2,16%</td> <td class="val red" id="id27">-2,21%</td> <td class="val green" id="id28">8,94%</td> <td class="val green" id="id29">47,09%</td> </tr> </tbod
A7: Amundi MSCI World UCITS ETF - EUR (C) | B7: A2H59Q | C7: LU1681043599 | D7: <tr> <td class="val green" id="id25">6,85%</td> <td class="val column-priority-2 green" id="id26">2,11%</td> <td class="val red" id="id27">-2,78%</td> <td class="val green" id="id28">8,84%</td> <td class="val green" id="id29">45,07%</td> </tr> </tbod
A8: Xtrackers MSCI World Index UCITS ETF 1D | B8: A1XEY2 | C8: IE00BK1PV551 | D8: <tr> <td class="val green" id="id25">6,86%</td> <td class="val column-priority-2 green" id="id26">2,04%</td> <td class="val red" id="id27">-2,42%</td> <td class="val green" id="id28">8,49%</td> <td class="val green" id="id29">46,14%</td> </tr> </tbod
A9: Xtrackers MSCI World Index UCITS ETF 1C | B9: A1XB5U | C9: IE00BJ0KDQ92 | D9: <tr> <td class="val green" id="id25">6,86%</td> <td class="val column-priority-2 green" id="id26">2,03%</td> <td class="val red" id="id27">-2,43%</td> <td class="val green" id="id28">8,51%</td> <td class="val green" id="id29">46,18%</td> </tr> </tbod
A10: Invesco MSCI World UCITS ETF | B10: A0RGCS | C10: IE00B60SX394 | D10: =jETFPerfString($C10) -> <tr> <td class="val green" id="id25">6,82%</td> <td class="val column-priority-2 green" id="id26">2,00%</td> <td class="val red" id="id27">-2,43%</td> <td class="val green" id="id28">8,48%</td> <td class="val green" id="id29">45,97%</td> </tr> </tbod
A11: UBS ETF (IE) MSCI World UCITS ETF (USD) A-dis | B11: A1JVCA | C11: IE00B7KQ7B66 | D11: =jETFPerfString($C11) -> <tr> <td class="val green" id="id26">6,82%</td> <td class="val column-priority-2 green" id="id27">1,98%</td> <td class="val red" id="id28">-2,53%</td> <td class="val green" id="id29">8,35%</td> <td class="val green" id="id2a">45,70%</td> </tr> </tbod
A12: iShares MSCI World UCITS ETF (Dist) | B12: A0HGV0 | C12: IE00B0M62Q58 | D12: <tr> <td class="val green" id="id26">6,83%</td> <td class="val column-priority-2 green" id="id27">1,99%</td> <td class="val red" id="id28">-2,51%</td> <td class="val green" id="id29">8,22%</td> <td class="val green" id="id2a">45,26%</td> </tr> </tbod
